bitfinex/quotes_ETHUSD_20250806
["timestamp","ask_amount","ask_price","bid_price","bid_amount"]
[1754485348960,0.9395,3592.9,3592.1,0.836354]
[1754485348961,1.3902,3592.9,3591.7,7.38167664]
[1754485349280,1.3902,3592.9,3591.4,0.4708]
[1754485349281,0.9174,3592.8,3592.3,2.78371953]
[1754485349472,5.2044,3592.8,3592.3,2.78371953]
[1754485349640,0.9174,3592.7,3592.3,2.78371953]
[1754485349970,0.9174,3592.6,3592.2,10.16546507]
[1754485350266,0.9174,3592.5,3591.9,7.38167664]
[1754485350449,0.9174,3592.5,3592.2,2.78375907]
[1754485350635,0.9174,3592.4,3591.9,2.78403361]
[1754485350836,0.9174,3592.4,3592.0,2.78395351]
[1754485351133,0.9174,3592.3,3592.0,2.78395351]
[1754485351338,4.287,3592.2,3592.0,2.78395351]
[1754485351554,4.287,3592.2,3592.1,2.78388686]
[1754485351757,4.287,3592.2,3591.9,2.78397489]
[1754485351758,4.287,3592.3,3592.2,2.78379458]
[1754485352371,4.7537,3592.3,3592.2,2.78379458]
[1754485352667,4.7537,3592.3,3591.6,0.002]
[1754485352828,0.9174,3592.2,3592.1,2.78388686]
[1754485353146,0.4667,3592.2,3592.1,2.78388686]
[1754485353465,4.7537,3592.2,3592.1,2.78388686]
[1754485354232,0.4667,3592.2,3592.1,2.78388686]
[1754485354569,4.287,3592.2,3592.1,2.78388686]
[1754485354734,4.7537,3592.2,3592.1,2.78388686]
[1754485354930,4.7537,3592.2,3592.0,2.78394534]
[1754485355127,0.9174,3592.1,3591.8,2.78411648]
[1754485355327,0.9174,3592.0,3591.8,2.78411648]
[1754485355788,0.9174,3591.9,3591.8,2.78411648]
[1754485355990,0.4667,3591.9,3591.8,2.78411648]
[1754485356172,4.7537,3592.2,3592.1,2.78388686]
[1754485356590,2.82328848,3592.9,3592.2,2.78378093]
[1754485356776,0.4667,3592.6,3592.2,2.78378093]
[1754485356980,0.4667,3592.6,3592.0,2.78396436]
[1754485357365,0.4507,3592.5,3592.0,2.78396436]
[1754485357662,0.4667,3592.4,3592.1,2.78387878]
[1754485357882,4.287,3592.3,3592.0,2.78393388]
[1754485358170,5.2044,3592.3,3592.1,2.78386322]
[1754485358487,0.9174,3592.7,3591.6,4.67607805]
[1754485358667,0.4667,3592.2,3592.1,2.78384328]
[1754485358867,0.9174,3592.2,3592.0,2.78393158]
[1754485359066,0.9174,3592.2,3591.8,2.78410411]
[1754485359067,4.7537,3592.1,3591.8,2.78410411]
[1754485359262,4.7377,3592.1,3592.0,0.1392]
[1754485359467,4.99823966,3592.1,3592.0,0.1392]
[1754485359891,5.46493966,3592.1,3592.0,0.1392]
[1754485360587,5.46493966,3592.1,3592.0,2.92316436]
[1754485361294,5.01423966,3592.1,3592.0,2.92316436]
[1754485361594,4.54753966,3592.1,3592.0,3.49389186]
[1754485362000,5.46493966,3592.1,3592.0,0.1392]
[1754485363193,5.46493966,3592.1,3591.8,0.1392]
[1754485363501,1.17793966,3592.0,3591.8,0.1392]
[1754485363705,0.26053966,3591.9,3591.8,0.1392]
[1754485363906,0.26053966,3591.9,3591.8,2.92331938]
[1754485364202,0.26053966,3591.9,3591.8,3.39411938]
[1754485364413,4.54753966,3591.9,3591.8,3.39411938]
[1754485364702,5.01423966,3591.9,3591.8,2.92331938]
[1754485365077,4.54753966,3591.9,3591.8,3.39411938]
[1754485365787,0.26053966,3591.9,3591.8,3.39411938]
[1754485366102,4.287,3591.9,3591.8,4.01215174]
[1754485366303,0.6059,3592.6,3591.8,1.22803236]
[1754485366476,0.04,3592.9,3592.4,2.7836322]
[1754485366477,0.2609469,3592.5,3592.4,2.7836322]
[1754485366677,0.2609469,3592.5,3592.4,3.3936322]
[1754485366887,4.5479469,3592.5,3592.4,3.3936322]
[1754485367096,4.5479469,3592.5,3592.4,2.9228322]
[1754485367489,0.2609469,3592.5,3592.4,3.3936322]
[1754485367910,4.5479469,3592.5,3592.4,3.3936322]
[1754485368290,0.2609469,3592.5,3592.4,4.01136935]
[1754485368495,4.5479469,3592.5,3592.4,4.01136935]
[1754485368794,0.2609469,3592.5,3592.4,7.01136935]
[1754485368983,4.288,3592.7,3592.6,2.78349941]
[1754485369179,4.54890581,3592.7,3592.6,3.39349941]
[1754485369383,4.54890581,3592.7,3592.6,4.37298629]
[1754485369579,4.54890581,3592.7,3592.6,5.75939729]
[1754485369811,4.288,3592.7,3592.6,5.75939729]
[1754485370120,4.288,3592.7,3592.6,5.28859729]
[1754485370990,5.1879,3592.7,3592.6,0.975611]
[1754485371316,5.44865224,3592.7,3592.5,0.1392]
[1754485371520,1.16065224,3592.6,3592.5,0.1392]
[1754485373994,0.70385224,3592.6,3592.5,0.1392]
[1754485374194,4.54775224,3592.6,3592.5,2.92277689]
[1754485374610,4.99085224,3592.6,3592.5,2.92277689]
[1754485374813,5.44765224,3592.6,3592.5,0.1392]
[1754485375718,5.44760976,3592.6,3592.5,2.92277689]
[1754485375921,4.99080976,3592.6,3592.5,2.92277689]
[1754485376123,4.54770976,3592.6,3592.5,3.41457689]
[1754485376325,0.26070976,3592.6,3592.5,3.41457689]
[1754485376529,4.54770976,3592.6,3592.5,3.41457689]
[1754485377407,4.54770976,3592.6,3592.5,2.92277689]
[1754485378096,0.001,3592.7,3592.6,2.78349941]
[1754485378415,4.288,3592.7,3592.6,10.65973028]
[1754485378616,4.7311,3592.7,3592.6,2.78349941]
[1754485379129,5.1879,3592.7,3592.6,2.78349941]
[1754485379432,5.1879,3592.7,3592.6,3.61987541]
[1754485379926,4.7311,3592.7,3592.6,2.78349941]
[1754485380304,5.1879,3592.7,3592.5,3.75918733]
[1754485380659,4.288,3592.7,3592.5,0.1392]
[1754485380824,4.288,3592.7,3592.5,2.92276638]
[1754485381014,4.288,3592.7,3592.6,2.78349941]
[1754485381331,4.7448,3592.7,3592.5,2.92274224]
[1754485381499,4.288,3592.7,3592.5,0.1392]
[1754485381700,0.8999,3592.6,3592.5,0.1392]
[1754485382332,0.001,3592.7,3592.6,2.78349941]
[1754485382634,4.287,3592.7,3592.5,2.9227304]
[1754485382946,4.7301,3592.7,3592.6,2.78349941]
[1754485383312,4.7301,3592.7,3592.5,2.92274302]
[1754485383804,0.4431,3592.6,3592.5,2.92274302]
[1754485384521,4.7291,3592.6,3592.5,2.92274302]
[1754485385736,4.286,3592.6,3592.5,3.41454302]
[1754485386101,0.001,3592.7,3592.6,2.78349941]
[1754485386435,4.287,3592.7,3592.6,2.78349941]
[1754485386607,0.001,3592.7,3592.6,2.92269941]
[1754485386807,4.287,3592.7,3592.6,2.92269941]
[1754485387218,4.7301,3592.7,3592.6,2.92269941]
[1754485387756,5.96954832,3592.7,3592.0,4.28]
[1754485387936,0.25995832,3592.6,3592.2,0.1392]
[1754485388269,0.25995832,3592.5,3592.2,0.1392]
[1754485388424,4.54595832,3592.4,3592.2,0.1392]
[1754485388630,0.25995832,3592.3,3592.2,0.1392]
[1754485388938,1.61445415,3592.3,3592.2,0.1392]
[1754485389614,1.61445415,3592.3,3592.0,2.78395714]
[1754485389816,0.70305832,3592.2,3592.0,2.78395714]
[1754485390019,4.286,3592.1,3591.9,2.92322543]
[1754485390219,4.7291,3592.1,3591.9,2.92322543]
[1754485390540,0.4431,3592.0,3591.9,2.92322543]
[1754485390944,4.286,3592.1,3592.0,2.78396436]
[1754485391246,4.286,3592.1,3592.0,3.27575099]
[1754485391947,4.286,3592.1,3592.0,2.78396436]
[1754485392123,5.1859,3592.1,3592.0,2.78396436]
[1754485392328,5.1859,3592.1,3591.9,2.92321727]
[1754485392533,0.4431,3592.0,3591.9,2.92321727]
[1754485392726,0.4431,3592.0,3591.9,0.1392]
[1754485392924,0.4431,3592.0,3591.8,0.002]
[1754485392925,1.81750535,3592.0,3591.8,0.002]
[1754485393117,0.25981535,3591.9,3591.8,0.002]
[1754485393331,1.15971535,3591.9,3591.8,0.002]
[1754485394130,5.44571535,3591.9,3591.8,0.002]
[1754485395477,0.25981535,3591.9,3591.8,2.78611938]
[1754485395696,4.54581535,3591.9,3591.8,3.27791938]
[1754485395882,4.54581535,3591.9,3591.8,3.41711938]
[1754485396652,4.54581535,3591.9,3591.8,2.92531938]
[1754485396852,4.98891535,3591.9,3591.8,0.1412]
[1754485397176,5.53348689,3591.9,3591.8,0.002]
[1754485397339,4.98891535,3591.9,3591.8,0.002]
[1754485397782,4.98891535,3591.9,3591.8,2.78611938]
[1754485398086,4.98891535,3591.9,3591.8,0.002]
[1754485398543,4.54581535,3591.9,3591.8,2.78611938]
[1754485399371,4.54581535,3591.9,3591.8,0.002]
[1754485399673,4.286,3591.9,3591.8,2.78611938]
[1754485400177,4.286,3591.9,3591.8,3.27788302]
[1754485400576,0.4431,3592.2,3591.8,3.27788302]
[1754485400816,4.54550282,3592.1,3592.0,2.78390171]
[1754485401005,4.54550282,3592.1,3592.0,3.41790171]
[1754485401304,4.54550063,3592.1,3592.0,3.41796436]
[1754485401507,6.689,3592.4,3592.2,2.78376268]
[1754485401808,6.689,3592.4,3592.3,3.27853187]
[1754485401982,11.4392,3592.4,3592.3,0.1392]
[1754485402183,11.4392,3592.4,3592.3,2.92293187]
[1754485402404,7.1532,3592.4,3592.3,2.92293187]
[1754485402608,0.001,3592.7,3592.4,3.333586]
[1754485402770,0.001,3592.7,3592.6,2.78349941]
[1754485403466,0.001,3592.7,3592.6,3.27829941]
[1754485403666,0.001,3592.7,3592.6,4.29283473]
[1754485404297,0.001,3592.7,3592.6,2.78349941]
[1754485404528,0.4652,3592.7,3592.6,2.78349941]
[1754485404874,0.001,3592.7,3592.6,2.78349941]
[1754485405402,4.286,3592.7,3592.6,3.27829941]
[1754485405564,4.286,3592.7,3592.6,4.50947592]
[1754485406470,4.286,3592.7,3592.6,2.78349941]
[1754485406674,5.2144,3592.7,3592.1,2.78386105]
[1754485406912,0.9284,3592.6,3592.0,2.78394756]
[1754485407116,0.25937857,3592.6,3591.9,2.78397575]
[1754485407428,0.9284,3592.5,3591.9,2.78403186]
[1754485407706,5.2134,3592.4,3591.8,2.78608768]
[1754485407877,0.9284,3592.3,3591.8,2.78608768]
[1754485408082,0.9284,3592.2,3591.8,2.78608768]
[1754485408321,5.2134,3592.1,3591.8,2.78608768]
[1754485408485,0.4642,3592.0,3591.9,2.78403982]
[1754485409595,0.4642,3592.0,3591.8,2.78607334]
[1754485409788,0.4642,3591.9,3591.8,0.002]
[1754485410110,0.9284,3591.9,3591.8,0.002]
[1754485411091,0.4642,3591.9,3591.8,0.002]
[1754485411292,4.285,3592.1,3591.8,2.78610464]
[1754485411614,0.4642,3592.0,3591.8,2.78610464]
[1754485411813,0.9284,3591.9,3591.8,0.002]
[1754485412922,1.34206793,3591.9,3591.8,0.002]
[1754485413825,4.38525528,3591.9,3591.8,0.002]
[1754485414030,7.38525528,3591.9,3591.8,0.002]
[1754485414231,7.52445528,3591.9,3591.8,0.002]
[1754485417431,37.52445528,3591.9,3591.8,0.002]
[1754485417892,41.80945528,3591.9,3591.8,0.002]
[1754485420537,11.81045528,3591.9,3591.8,0.002]
[1754485420929,7.52445528,3591.9,3591.8,0.002]
[1754485421125,3.81201341,3591.9,3591.8,0.002]
[1754485421347,5.09801341,3591.9,3591.8,0.002]
[1754485421656,4.54514548,3591.9,3591.8,0.4968]
[1754485422249,4.54514548,3591.9,3591.8,3.28091938]
[1754485422621,4.286,3591.9,3591.8,3.28091938]
[1754485422824,0.001,3592.2,3592.0,2.78394948]
[1754485423036,4.286,3592.1,3592.0,2.78394948]
[1754485423372,4.286,3592.1,3592.0,3.27874948]
[1754485423900,0.001,3592.2,3592.0,3.27874948]
[1754485424137,4.286,3592.1,3592.0,2.78394948]
[1754485424338,4.286,3592.1,3591.9,2.92322555]
[1754485424534,4.286,3592.1,3592.0,2.78396436]
[1754485424735,4.286,3592.1,3592.0,0.4948]
[1754485425639,0.001,3592.2,3592.1,2.78388686]
[1754485425830,4.287,3592.2,3592.0,3.27873905]
[1754485426035,4.287,3592.2,3592.1,3.27868686]
[1754485426406,4.287,3592.2,3592.1,2.78388686]
[1754485426607,4.287,3592.2,3592.1,0.1392]
[1754485426912,4.287,3592.2,3592.1,0.634]
[1754485427315,0.001,3592.2,3592.1,3.41788686]
[1754485427522,4.286,3592.2,3592.1,3.75987555]
[1754485428941,0.001,3592.2,3592.1,3.75987555]
[1754485429145,0.001,3592.2,3592.1,4.42067555]
[1754485430062,0.001,3592.2,3592.1,7.42067555]
[1754485430063,1e-08,3592.2,3592.1,7.42067555]
[1754485435440,1e-08,3592.2,3592.1,7.53217755]
[1754485435751,1e-08,3592.2,3592.1,11.81617755]
[1754485437271,1e-08,3592.2,3592.1,11.70537755]
[1754485437577,1e-08,3592.2,3592.1,11.81617755]
[1754485438836,1e-08,3592.2,3592.1,11.70537755]
[1754485440367,1e-08,3592.2,3592.1,11.81617755]
[1754485441276,1e-08,3592.2,3592.1,16.09617755]
[1754485441693,1e-08,3592.2,3592.1,15.98537755]
[1754485441848,1e-08,3592.2,3592.1,16.09617755]
[1754485443079,0.04,3592.9,3592.8,3.33334446]
[1754485443375,0.04,3592.9,3592.8,10.94967891]
[1754485443580,0.04,3592.9,3592.8,11.56897891]
[1754485443779,0.04,3592.9,3592.8,11.78117891]
[1754485444078,0.04,3592.9,3592.8,12.26127891]
[1754485444648,0.04,3592.9,3592.8,19.64191512]
[1754485444848,0.04,3592.9,3592.8,19.50271512]
[1754485445049,0.04,3592.9,3592.8,19.64191512]
[1754485446380,0.04,3592.9,3592.8,7.49817891]
[1754485446548,0.9566,3592.9,3592.8,11.78117891]
[1754485446750,0.9566,3592.9,3592.8,6.80587891]
[1754485446949,0.9566,3592.9,3592.8,6.47254446]
[1754485447369,0.04,3592.9,3592.8,6.47254446]
[1754485447689,0.04,3592.9,3592.8,6.95264446]
[1754485447985,0.04,3592.9,3592.8,6.47254446]
[1754485448180,0.04,3592.9,3592.8,3.47254446]
[1754485448387,0.9566,3592.9,3592.8,3.47254446]
[1754485448753,0.4828,3592.9,3592.8,3.47254446]
[1754485449375,0.4828,3592.9,3592.8,7.75254446]
[1754485449689,0.9566,3592.9,3592.8,7.75254446]
[1754485451161,0.4828,3592.9,3592.8,7.75254446]
[1754485451362,0.04,3592.9,3592.8,10.04473543]
[1754485451564,0.9566,3592.9,3592.8,10.04473543]
[1754485451764,0.9566,3592.9,3592.8,7.20254446]
[1754485452588,0.9566,3592.9,3592.3,0.836333]
[1754485452917,0.9166,3592.8,3592.7,2.92262193]
[1754485453069,0.4428,3592.8,3592.7,2.78342193]
[1754485453264,0.9166,3592.8,3592.7,2.92262193]
[1754485455103,0.4428,3592.8,3592.7,2.92262193]
[1754485456168,0.9166,3592.8,3592.7,2.92262193]
[1754485456391,0.4428,3592.8,3592.7,2.92262193]
[1754485456596,0.04,3592.9,3592.8,2.78334446]
[1754485458509,0.04,3592.9,3592.8,4.8602511]
[1754485461333,0.04,3592.9,3592.8,7.8602511]
[1754485461498,0.04,3592.9,3592.8,7.9994511]
[1754485462129,1e-08,3593.0,3592.9,6.33326699]
[1754485462424,1e-08,3593.0,3592.9,13.60338563]
[1754485463367,1e-08,3593.0,3592.9,14.06798563]
[1754485466306,1e-08,3593.0,3592.9,20.99292184]
[1754485467023,1e-08,3593.0,3592.9,21.44862184]
[1754485467195,0.46460001,3593.0,3592.9,20.99292184]
[1754485467379,1e-08,3593.0,3592.9,21.44862184]
[1754485468926,0.46460001,3593.0,3592.9,20.99292184]
[1754485469129,0.46460001,3593.0,3592.9,16.71192184]
[1754485469342,0.94180001,3593.0,3592.9,12.59668563]
[1754485469514,0.94180001,3593.0,3592.9,13.14668563]
[1754485470029,0.46460001,3593.0,3592.9,13.14668563]
[1754485470481,1e-08,3593.0,3592.9,13.14668563]
[1754485470825,1e-08,3593.0,3592.9,13.60238563]
[1754485471784,1e-08,3593.0,3592.9,14.07958563]
[1754485472082,1e-08,3593.0,3592.9,13.62388563]
[1754485472310,1e-08,3593.0,3592.9,14.07958563]
[1754485472535,0.94180001,3593.0,3592.9,8.86668563]
[1754485472847,0.94180001,3593.0,3592.9,10.61326699]
[1754485473942,0.94180001,3593.0,3592.9,6.33326699]
[1754485474115,0.94180001,3593.0,3592.9,10.61326699]
[1754485474746,0.94180001,3593.0,3592.9,6.33326699]
[1754485475043,0.94180001,3593.0,3592.9,10.61326699]
[1754485475985,0.94180001,3593.0,3592.9,6.33326699]
[1754485476343,0.94180001,3593.0,3592.9,2.78326699]
[1754485477413,0.94180001,3593.0,3592.8,0.1392]
[1754485477618,1e-08,3593.0,3592.8,0.1392]
[1754485477821,0.9418,3592.9,3592.8,0.1392]
[1754485479151,0.9418,3592.9,3592.6,0.1392]
[1754485479315,0.9418,3592.8,3592.6,0.1392]
[1754485479922,0.9418,3592.7,3592.6,0.1392]
[1754485480148,0.9418,3592.7,3592.6,2.92269941]
[1754485480749,1e-08,3593.0,3592.8,2.78334446]
[1754485480966,1e-08,3593.0,3592.6,10.75903562]
[1754485480967,1e-08,3593.0,3592.9,0.1392]
[1754485481321,0.56292612,3593.0,3592.9,0.1392]
[1754485481532,0.72334753,3593.0,3592.9,0.1392]
[1754485481835,1.20054753,3593.0,3592.6,0.1392]
[1754485482157,1.20054752,3592.9,3592.6,0.1392]
[1754485482366,0.9418,3592.9,3592.6,0.1392]
[1754485482523,0.25860295,3592.9,3592.6,0.1392]
[1754485482718,0.9418,3592.8,3592.6,0.1392]
[1754485482930,0.9418,3592.7,3592.3,0.002]
[1754485483130,1.20039329,3592.7,3592.3,0.002]
[1754485483340,3.98393993,3592.6,3592.3,0.002]
[1754485483546,0.67090728,3592.5,3592.3,0.002]
[1754485483919,3.98404767,3592.4,3592.3,0.002]
[1754485484757,8.26404767,3592.4,3592.3,0.002]
[1754485485146,8.26365138,3592.4,3592.3,0.002]
[1754485489048,5.479997,3592.4,3592.3,0.002]
[1754485489367,6.63985231,3592.4,3592.3,0.002]
[1754485490837,6.38165531,3592.4,3592.3,0.002]
[1754485491975,5.2218,3592.4,3592.3,0.002]
[1754485500037,4.28,3592.4,3592.3,0.002]
[1754485500241,0.25750802,3592.4,3592.3,0.002]
[1754485500452,0.4531,3592.7,3592.5,2.78354083]
[1754485500671,0.25750802,3592.8,3592.6,0.4736]
[1754485500877,4.279,3592.7,3592.6,2.78349941]
[1754485501273,4.279,3592.7,3592.6,2.92262377]
[1754485501441,5.8288,3592.7,3592.3,0.002]
[1754485501642,2.78365438,3592.4,3592.3,0.002]
[1754485501847,17.84005612,3592.4,3592.3,0.002]
[1754485502052,18.78975612,3592.4,3592.3,0.002]
[1754485504957,48.78975612,3592.4,3592.3,0.002]
[1754485505308,51.51841798,3592.4,3592.3,0.002]
[1754485506377,52.39527476,3592.4,3591.8,0.002]
[1754485506585,10.30387808,3591.9,3591.8,0.002]
[1754485506806,14.84044361,3591.9,3591.8,0.002]
[1754485506950,17.55258318,3591.9,3591.8,0.002]
[1754485508387,5.89294697,3591.9,3591.8,0.002]
[1754485508591,8.4095074,3591.9,3591.8,0.002]
[1754485509091,31.76311871,3591.9,3591.8,0.002]
[1754485510907,3.03169689,3591.7,3591.6,0.002]
[1754485511060,7.56826242,3591.7,3591.6,0.002]
[1754485511264,8.65716242,3591.7,3591.6,0.002]
[1754485511462,11.38582428,3591.7,3591.6,0.002]
[1754485512577,10.88922428,3591.7,3591.6,0.002]
[1754485512892,11.38582428,3591.7,3591.6,0.002]
[1754485513592,11.38633642,3591.7,3591.6,0.002]
[1754485514793,10.88973642,3591.7,3591.6,0.002]
[1754485515681,11.38633642,3591.7,3591.6,0.002]
[1754485516596,11.38629072,3591.7,3591.6,0.002]
[1754485517920,11.38629072,3591.7,3591.5,0.002]
[1754485517921,11.38629072,3591.7,3591.5,1e-08]
[1754485517922,36.40798975,3591.6,3591.5,1e-08]
[1754485518119,46.24012943,3591.6,3591.5,1e-08]
[1754485518416,45.94327087,3591.6,3591.5,1e-08]
[1754485518763,11.70427788,3591.6,3591.5,1e-08]
[1754485518998,7.67623197,3591.6,3591.5,0.47360001]
[1754485519366,3.39723197,3591.6,3591.5,0.47360001]
[1754485519570,7.67623197,3591.6,3591.5,0.47360001]
[1754485519782,10.46050638,3591.6,3591.5,0.47360001]
[1754485520009,4.67623197,3591.6,3591.5,0.47360001]
[1754485521043,0.39723197,3591.6,3591.5,0.47360001]
[1754485521303,4.53703197,3591.6,3591.5,3.83437019]
[1754485521464,0.25803197,3591.6,3591.5,3.83437019]
[1754485521798,0.2475,3591.7,3591.6,2.78427441]
[1754485521965,4.5265,3591.7,3591.6,3.38217441]
[1754485522165,4.5265,3591.7,3591.6,4.04578887]
[1754485522591,0.2475,3591.7,3591.6,4.04578887]
[1754485522798,4.5265,3591.7,3591.6,4.04578887]
[1754485523387,4.5265,3591.7,3591.6,3.27137441]
[1754485523582,4.5265,3591.7,3591.6,0.4871]
[1754485524323,4.5265,3591.7,3591.6,3.27137441]
[1754485525005,4.5265,3591.7,3591.6,3.38217441]
[1754485526206,4.5265,3591.7,3591.6,3.27137441]
[1754485526880,4.5265,3591.7,3591.6,3.38217441]
[1754485527217,4.5265,3591.7,3591.6,0.4871]
[1754485528503,4.5265,3591.7,3591.6,3.27137441]
[1754485529107,4.5265,3591.7,3591.6,3.89127408]
[1754485529409,0.2475,3591.7,3591.6,1.10699967]
[1754485529576,4.5255,3591.7,3591.6,0.4871]
[1754485530304,24.87911131,3591.7,3591.6,0.4871]
[1754485530677,24.87911131,3591.7,3591.6,3.27137441]
[1754485531310,24.87911131,3591.7,3591.6,0.4871]
[1754485531706,25.31021131,3591.7,3591.5,1e-08]
[1754485532494,0.4311,3591.6,3591.5,1e-08]
[1754485533610,1.71989201,3591.6,3591.5,1e-08]
[1754485534513,0.4311,3591.6,3591.5,1e-08]
[1754485535012,0.9236,3591.6,3591.5,1e-08]
[1754485535603,0.4311,3591.6,3591.5,1e-08]
[1754485536101,0.9236,3591.6,3591.5,1e-08]
[1754485536303,3.70787441,3591.6,3591.5,1e-08]
[1754485536497,6.43653627,3591.6,3591.5,1e-08]
[1754485536809,9.43653627,3591.6,3591.5,1e-08]
[1754485537179,9.57573627,3591.6,3591.5,1e-08]
[1754485539193,9.83375152,3591.6,3591.5,1e-08]
[1754485539379,8.91015152,3591.6,3591.5,1e-08]
[1754485539588,9.34125152,3591.6,3591.5,1e-08]
[1754485539781,6.12587711,3591.6,3591.5,0.48710001]
[1754485540004,8.91015152,3591.6,3591.5,1e-08]
[1754485540204,9.34125152,3591.6,3591.5,1e-08]
[1754485540420,9.83375152,3591.6,3591.5,1e-08]
[1754485542107,6.12587711,3591.6,3591.5,1e-08]
[1754485542395,4.53401525,3591.6,3591.5,0.48710001]
[1754485542600,4.276,3591.6,3591.5,3.38225195]
[1754485543198,4.276,3591.6,3591.5,3.52145195]
[1754485544091,20.60211131,3591.7,3591.6,2.78427441]
[1754485544282,24.87811131,3591.7,3591.6,3.27137441]
[1754485545310,20.60211131,3591.7,3591.6,3.90235354]
[1754485545486,24.87811131,3591.7,3591.6,4.01315354]
[1754485546506,24.87811131,3591.7,3591.6,3.90235354]
[1754485546887,24.87811131,3591.7,3591.6,3.27137441]
[1754485548214,24.87811131,3591.7,3591.6,2.78427441]
[1754485549345,24.87811131,3591.7,3591.6,3.27137441]
[1754485552655,24.87811131,3591.7,3591.5,2.92354832]
[1754485552827,24.87811131,3591.7,3591.6,2.78427441]
[1754485553454,28.35213244,3591.7,3591.5,0.13920001]
[1754485553660,1.0784,3591.6,3591.5,1e-08]
[1754485554553,1.33674073,3591.6,3591.5,1e-08]
[1754485557238,7.12101514,3591.6,3591.5,1e-08]
[1754485557557,9.849677,3591.6,3591.5,1e-08]
[1754485559224,7.06540259,3591.6,3591.5,1e-08]
[1754485559420,3.86664073,3591.6,3591.5,1e-08]
[1754485559627,3.25834073,3591.6,3591.5,0.49900001]
[1754485559827,7.53234073,3591.6,3591.5,0.49900001]
[1754485560143,7.53234073,3591.6,3591.5,3.28335195]
[1754485560353,4.53234073,3591.6,3591.5,3.28335195]
[1754485561028,4.53234073,3591.6,3591.5,1e-08]
[1754485561562,4.53234073,3591.6,3591.5,3.28335195]
[1754485561988,0.25834073,3591.6,3591.5,3.28335195]
[1754485562160,4.274,3591.6,3591.5,3.28335195]
[1754485567962,20.60211131,3591.7,3591.6,2.78427441]
[1754485568182,24.87511131,3591.7,3591.6,2.92347441]
[1754485568335,24.87511131,3591.7,3591.6,3.42247441]
[1754485569564,24.87511131,3591.7,3591.6,2.92347441]
[1754485569766,25.34421131,3591.7,3591.6,2.92347441]
[1754485569945,24.87511131,3591.7,3591.6,3.42247441]
[1754485570346,24.87511131,3591.7,3591.6,2.92347441]
[1754485570966,24.87511131,3591.7,3591.6,3.42247441]
[1754485574835,24.62761131,3591.7,3591.6,3.42247441]
[1754485576877,20.35461131,3591.7,3591.6,4.04355705]
[1754485577168,24.62561131,3591.7,3591.6,4.04355705]
[1754485578264,20.35461131,3591.7,3591.6,4.04355705]
[1754485578453,24.62561131,3591.7,3591.6,4.04355705]
[1754485579768,25.56481131,3591.7,3591.6,2.92347441]
[1754485580368,25.09471131,3591.7,3591.6,2.92347441]
[1754485580767,20.35461131,3591.7,3591.6,2.92347441]
[1754485580973,24.62561131,3591.7,3591.6,10.30411062]
[1754485581157,25.08841131,3591.7,3591.6,2.92347441]
[1754485581367,25.57951131,3591.7,3591.6,2.92347441]
[1754485581667,25.57951131,3591.7,3591.6,0.1392]
[1754485581887,28.13746244,3591.7,3591.5,1e-08]
[1754485582040,27.18356244,3591.7,3591.5,1e-08]
[1754485582240,0.9539,3591.6,3591.5,2.78435195]
[1754485584035,0.9539,3591.6,3591.5,2.92355195]
[1754485584240,0.4628,3591.6,3591.5,2.92355195]
[1754485593688,3.01012842,3591.6,3591.5,0.13920001]
[1754485593887,3.01012842,3591.6,3591.5,1e-08]
[1754485594750,3.01017453,3591.6,3591.5,1e-08]
[1754485598094,8.79444894,3591.6,3591.5,1e-08]
[1754485600159,13.06344894,3591.6,3591.5,1e-08]
[1754485600358,13.20264894,3591.6,3591.5,1e-08]
[1754485600992,7.41837453,3591.6,3591.5,1e-08]
[1754485601861,10.20264894,3591.6,3591.5,1e-08]
[1754485602067,13.20264894,3591.6,3591.5,1e-08]
[1754485603888,13.20364894,3591.6,3591.5,1e-08]
[1754485606602,13.20286451,3591.6,3591.5,1e-08]
[1754485609262,13.20300442,3591.6,3591.5,1e-08]
[1754485609697,13.41038383,3591.6,3591.5,1e-08]
[1754485615133,43.96038383,3591.6,3591.5,1e-08]
[1754485615417,6.33435194,3591.5,3591.4,1e-08]
[1754485615709,6.33435194,3591.5,3591.3,0.002]
[1754485615710,2.78458453,3591.2,3591.1,0.042]
[1754485615871,47.14176678,3591.2,3591.1,0.042]
[1754485616071,48.62166678,3591.2,3591.1,1e-08]
[1754485616265,3.33481717,3590.9,3590.4,0.002]
[1754485616467,48.24143563,3590.9,3590.4,0.002]
[1754485616672,51.89999749,3590.9,3590.4,0.002]
[1754485617065,2.78567051,3589.8,3589.7,0.002]
[1754485617274,10.45067932,3589.8,3589.7,0.002]
[1754485617481,40.45067932,3589.8,3589.7,0.002]
[1754485617879,41.38057932,3589.8,3589.7,0.002]
[1754485618080,41.92340306,3589.8,3589.7,0.002]
[1754485618581,40.99350306,3589.8,3589.7,0.002]
[1754485618786,41.42430306,3589.8,3589.7,0.002]
[1754485619303,41.92340306,3589.8,3589.7,0.002]
[1754485619473,42.68393738,3589.8,3589.7,0.002]
[1754485620278,42.79560538,3589.8,3589.7,0.002]
[1754485620480,7.97760538,3589.8,3589.7,0.002]
[1754485620707,37.36683738,3589.8,3589.7,0.002]
[1754485621027,37.36683738,3589.8,3589.7,0.4698]
[1754485621028,0.39636637,3589.8,3589.7,0.4698]
[1754485621178,0.1392,3589.8,3589.7,0.5806]
[1754485621499,4.4072,3589.8,3589.7,0.4698]
[1754485622085,0.1392,3589.8,3589.7,0.4698]
[1754485622312,4.268,3589.8,3589.7,0.5806]
[1754485622523,4.268,3589.8,3589.7,0.4698]
[1754485622875,0.1392,3589.9,3589.7,0.4698]
[1754485623112,4.268,3589.8,3589.7,0.4698]
[1754485624170,0.1392,3589.9,3589.7,0.91745301]
[1754485624375,4.268,3589.8,3589.7,3.39469361]
[1754485624623,3.0,3590.7,3589.9,2.78559291]
[1754485624785,0.1392,3590.4,3590.0,0.4678]
[1754485624983,4.268,3590.3,3590.0,0.4678]
[1754485625398,4.268,3590.3,3590.1,0.4678]
[1754485625616,0.1392,3590.2,3590.1,0.4678]
[1754485625980,0.39666827,3590.2,3589.8,0.4678]